[Event "FIDE WYCC Open U14 2023"]
[Site "Montesilvano"]
[Date "2023.11.21"]
[Round "8.19"]
[White "Yun, Hungi"]
[Black "Dhruva Thota"]
[Result "0-1"]
[ECO "B99"]
[WhiteElo "1884"]
[BlackElo "2192"]
[Annotator "RC"]
[PlyCount "160"]
[EventDate "2023.11.13"]
[EventType "swiss"]
[EventCountry "ITA"]
[SourceTitle "playchess.com"]
[Source "ChessBase"]
[SourceQuality "1"]
[TimeControl "40/5400+30:1800+30"]

1. e4 {[%emt 0:00:06]} c5 {[%emt 0:00:14]} 2. Nf3 {[%emt 0:00:05]} d6 {[%emt 0:00:05]} 3. d4 {[%emt 0:00:10]} cxd4 {[%emt 0:00:04]} 4. Nxd4 {[%emt 0:00:05]} Nf6 {[%emt 0:00:04]} 5. Nc3 {[%emt 0:00:05]} a6 {[%emt 0:00:06]} 6. Bg5 {[%emt 0:00:22]} e6 {[%emt 0:01:42]} 7. f4 {[%emt 0:00:15]} Be7 {[%emt 0:01:04]} 8. Qf3 {[%emt 0:00:13]} Qc7 {[%emt 0:00:09]} 9. O-O-O {[%emt 0:00:10]} Nbd7 {[%emt 0:01:23]} 10. f5 {[%emt 0:01:13]} e5 {[%emt 0:01:53]} 11. Nde2 {[%emt 0:01:29]} b5 {[%emt 0:01:49]} 12. Bxf6 {[%emt 0:01:38]} Nxf6 {[%emt 0:00:21]} 13. Nd5 {[%emt 0:00:11]} Nxd5 {[%emt 0:01:52]} 14. exd5 {[%emt 0:00:07]} b4 {[%emt 0:08:21]} 15. Ng3 {[%emt 0:01:22]} Qb6 {[%emt 0:10:00]} 16. Ne4 {[%emt 0:10:05]} f6 {[%emt 0:06:46]} 17. g4 {[%emt 0:09:58]} Bd7 {[%emt 0:03:23]} 18. h4 {[%emt 0:05:00]} a5 {[%emt 0:07:35]} 19. g5 {[%emt 0:14:24]} Kd8 {[%emt 0:04:38]} 20. gxf6 {[%emt 0:16:32]} gxf6 {[%emt 0:05:02]} 21. Bc4 {[%emt 0:02:34]} Rc8 {[%emt 0:03:41]} 22. b3 {[%emt 0:00:39]} Rg8 {[%emt 0:01:17]} 23. Rh3 {[%emt 0:10:46]} a4 {[%emt 0:06:28]} 24. Rg3 {[%emt 0:04:06]} Kc7 {[%emt 0:01:30]} 25. bxa4 {[%emt 0:02:35]} Bxa4 {[%emt 0:03:55]} 26. Rdg1 {[%emt 0:05:55]} Rxg3 {[%emt 0:09:35]} 27. Rxg3 {[%emt 0:00:07]} Qd4 {[%emt 0:00:54]} 28. Bb3 {[%emt 0:01:10]} Bxb3 {[%emt 0:00:34]} 29. axb3 {[%emt 0:00:31]} Qxd5 {[%emt 0:09:45]} 30. Rg7 {[%emt 0:03:46]} Kd8 {[%emt 0:00:24]} 31. Rxh7 {[%emt 0:03:37]} Qg8 {[%emt 0:01:17]} 32. Qh5 {[%emt 0:03:03]} Qg1+ {[%emt 0:00:23]} 33. Qd1 {[%emt 0:00:48]} Qe3+ {[%emt 0:01:41]} 34. Nd2 {[%emt 0:00:01]} Rc5 {[%emt 0:06:13]} 35. Qh1 {[%emt 0:01:03]} Ra5 {[%emt 0:00:58]} 36. Rh8+ {[%emt 0:02:24]} Kc7 {[%emt 0:00:01]} 37. Ra8 {[%emt 0:01:21]} Rxa8 {[%emt 0:00:23]} 38. Qxa8 {[%emt 0:00:01]} Qe1+ {[%emt 0:00:01]} 39. Kb2 {[%emt 0:00:01]} Qxd2 {[%emt 0:00:01]} 40. Qa7+ {[%emt 0:00:00]} Kd8 {[%emt 0:00:00]} 41. Qb8+ {[%emt 0:03:18]} Kd7 {[%emt 0:01:15]} 42. Qb5+ {[%emt 0:03:09]} Kc7 {[%emt 0:01:26]} 43. Qa5+ {[%emt 0:00:39]} Kc6 {[%emt 0:02:33]} 44. Qa6+ {[%emt 0:00:29]} Kc5 {[%emt 0:02:34]} 45. Qa7+ {[%emt 0:00:31]} Kd5 {[%emt 0:00:12]} 46. Qb7+ {[%emt 0:02:57]} Kd4 {[%emt 0:01:17]} 47. Qxe7 {[%emt 0:00:44]} Qc3+ {[%emt 0:04:17]} 48. Kb1 {[%emt 0:00:18]} Qe1+ {[%emt 0:00:28]} 49. Kb2 {[%emt 0:02:05]} Qxh4 {[%emt 0:05:10]} 50. Qxd6+ {[%emt 0:00:10]} Ke3 {[%emt 0:00:05]} 51. Ka2 {[%emt 0:04:46]} Kf3 {[%emt 0:10:33]} 52. Kb1 {[%emt 0:05:43]} Qe1+ {[%emt 0:03:16]} 53. Ka2 {[%emt 0:00:58]} Qc3 {[%emt 0:00:54]} 54. Qd1+ {[%emt 0:12:23]} Kf2 {[%emt 0:00:13]} 55. Qc1 {[%emt 0:01:16]} Ke2 {[%emt 0:01:48]} 56. Kb1 {[%emt 0:00:28]} e4 {[%emt 0:00:43]} 57. Qf4 {[%emt 0:00:29]} e3 {[%emt 0:00:49]} 58. Qe4 {[%emt 0:00:34]} Qe1+ {[%emt 0:01:30]} 59. Kb2 {[%emt 0:00:22]} Qg3 {[%emt 0:00:28]} 60. Qxb4 {[%emt 0:00:28]} Kf1 {[%emt 0:00:51]} 61. Qc3 {[%emt 0:00:35]} Qf4 {[%emt 0:01:18]} 62. Qxf6 {[%emt 0:00:35]} e2 {[%emt 0:00:19]} 63. Qa6 {[%emt 0:00:08]} Qe5+ {[%emt 0:01:10]} 64. Ka2 {[%emt 0:00:54]} Kf2 {[%emt 0:00:30]} 65. Qa7+ {[%emt 0:00:28]} Qe3 {[%emt 0:00:08]} 66. Qc7 {[%emt 0:00:34]} e1=Q {[%emt 0:00:17]} 67. Qh2+ {[%emt 0:00:04]} Kf3 {[%emt 0:00:06]} 68. Qh5+ {[%emt 0:00:09]} Kg2 {[%emt 0:00:11]} 69. Qg6+ {[%emt 0:00:16]} Q1g3 {[%emt 0:00:10]} 70. Qc6+ {[%emt 0:00:10]} Qef3 {[%emt 0:00:01]} 71. Qc5 {[%emt 0:01:23]} Qgf2 {[%emt 0:00:47]} 72. Qc8 {[%emt 0:00:41]} Qxf5 {[%emt 0:00:23]} 73. Qg8+ {[%emt 0:00:07]} Qg3 {[%emt 0:00:03]} 74. Qa8+ {[%emt 0:00:09]} Qff3 {[%emt 0:00:06]} 75. Qc8 {[%emt 0:00:18]} Qc3 {[%emt 0:00:16]} 76. Qa8+ {[%emt 0:00:11]} Kf2 {[%emt 0:00:11]} 77. Qa7+ {[%emt 0:00:12]} Ke2 {[%emt 0:00:11]} 78. Qa6+ {[%emt 0:00:59]} Ke1 {[%emt 0:00:28]} 79. Kb1 {[%emt 0:00:24]} Qge5 {[%emt 0:00:17]} 80. Qa3 {[%emt 0:00:20]} Qd2 {[%emt 0:00:21]} 0-1

[Event "FIDE WYCC Open U14 2023"]
[Site "Montesilvano"]
[Date "2023.11.21"]
[Round "8.20"]
[White "Sheahan, Gavin"]
[Black "Katsanis, Vasileios Dim"]
[Result "0-1"]
[ECO "D31"]
[WhiteElo "1807"]
[BlackElo "2173"]
[Annotator "RC"]
[PlyCount "120"]
[EventDate "2023.11.13"]
[EventType "swiss"]
[EventCountry "ITA"]
[SourceTitle "playchess.com"]
[Source "ChessBase"]
[SourceQuality "1"]
[TimeControl "40/5400+30:1800+30"]

1. d4 {[%emt 0:00:02]} d5 {[%emt 0:00:03]} 2. c4 {[%emt 0:00:08]} e6 {[%emt 0:00:03]} 3. Nc3 {[%emt 0:00:07]} a6 {[%emt 0:00:04]} 4. cxd5 {[%emt 0:00:25]} exd5 {[%emt 0:00:05]} 5. Nf3 {[%emt 0:00:06]} Nf6 {[%emt 0:01:01]} 6. Bg5 {[%emt 0:00:06]} c6 {[%emt 0:00:38]} 7. Qc2 {[%emt 0:00:35]} Be6 {[%emt 0:00:15]} 8. e3 {[%emt 0:00:33]} Nbd7 {[%emt 0:00:12]} 9. Bd3 {[%emt 0:00:20]} Bd6 {[%emt 0:00:20]} 10. Bf4 {[%emt 0:01:36]} Qc7 {[%emt 0:01:36]} 11. Bxd6 {[%emt 0:00:18]} Qxd6 {[%emt 0:00:07]} 12. O-O {[%emt 0:00:07]} O-O {[%emt 0:00:29]} 13. Ng5 {[%emt 0:02:21]} h6 {[%emt 0:01:05]} 14. Nxe6 {[%emt 0:00:37]} Qxe6 {[%emt 0:01:53]} 15. Na4 {[%emt 0:11:34]} Rfe8 {[%emt 0:15:30]} 16. b4 {[%emt 0:07:44]} Qd6 {[%emt 0:15:19]} 17. Nc5 {[%emt 0:06:40]} Rab8 {[%emt 0:00:59]} 18. a4 {[%emt 0:04:28]} Ng4 {[%emt 0:02:55]} 19. g3 {[%emt 0:01:40]} Nf8 {[%emt 0:10:56]} 20. Be2 {[%emt 0:09:03]} Nf6 {[%emt 0:01:30]} 21. b5 {[%emt 0:03:22]} cxb5 {[%emt 0:05:47]} 22. axb5 {[%emt 0:00:19]} a5 {[%emt 0:10:45]} 23. Rfc1 {[%emt 0:08:35]} Rec8 {[%emt 0:03:15]} 24. Qf5 {[%emt 0:03:44]} Ne6 {[%emt 0:01:29]} 25. Nd3 {[%emt 0:08:45]} Rxc1+ {[%emt 0:05:53]} 26. Nxc1 {[%emt 0:00:57]} b6 {[%emt 0:06:26]} 27. Nd3 {[%emt 0:02:29]} Rc8 {[%emt 0:00:02]} 28. Ne5 {[%emt 0:00:55]} Rc7 {[%emt 0:00:18]} 29. Nc6 {[%emt 0:01:59]} Nf8 {[%emt 0:05:45]} 30. Bf3 {[%emt 0:02:54]} N8d7 {[%emt 0:00:31]} 31. Kf1 {[%emt 0:03:12]} Kf8 {[%emt 0:00:59]} 32. h4 {[%emt 0:02:08]} g6 {[%emt 0:00:31]} 33. Qd3 {[%emt 0:00:57]} h5 {[%emt 0:00:30]} 34. Ke2 {[%emt 0:01:21]} Kg7 {[%emt 0:00:27]} 35. Rg1 {[%emt 0:01:25]} Rc8 {[%emt 0:03:05]} 36. Ra1 {[%emt 0:04:01]} Nb8 {[%emt 0:00:37]} 37. Ne5 {[%emt 0:01:50]} Qb4 {[%emt 0:00:45]} 38. Rb1 {[%emt 0:01:28]} Qd6 {[%emt 0:00:40]} 39. Qb3 {[%emt 0:01:46]} Nbd7 {[%emt 0:00:17]} 40. Nc6 {[%emt 0:00:00]} Re8 {[%emt 0:00:00]} 41. Rg1 {[%emt 0:04:46]} Ne4 {[%emt 0:03:50]} 42. Bxe4 {[%emt 0:04:04]} Rxe4 {[%emt 0:00:50]} 43. f3 {[%emt 0:03:20]} Re8 {[%emt 0:00:28]} 44. Kf2 {[%emt 0:04:48]} Nf6 {[%emt 0:02:19]} 45. Qc3 {[%emt 0:02:45]} Rc8 {[%emt 0:01:03]} 46. Qb3 {[%emt 0:01:34]} Qe6 {[%emt 0:00:13]} 47. Kg2 {[%emt 0:02:22]} Ne8 {[%emt 0:01:02]} 48. Re1 {[%emt 0:02:49]} Nd6 {[%emt 0:00:21]} 49. Rc1 {[%emt 0:03:20]} Nf5 {[%emt 0:01:47]} 50. Re1 {[%emt 0:04:27]} Qd6 {[%emt 0:00:46]} 51. f4 {[%emt 0:00:15]} Re8 {[%emt 0:01:56]} 52. Qd3 {[%emt 0:02:24]} Qe6 {[%emt 0:02:47]} 53. Kf2 {[%emt 0:02:52]} Nd6 {[%emt 0:00:21]} 54. Kg2 {[%emt 0:01:42]} f6 {[%emt 0:01:48]} 55. Qe2 {[%emt 0:02:46]} Nc4 {[%emt 0:01:56]} 56. Kf3 {[%emt 0:01:07]} a4 {[%emt 0:02:29]} 57. Nb4 {[%emt 0:01:46]} a3 {[%emt 0:00:15]} 58. Qd3 {[%emt 0:00:27]} Qd7 {[%emt 0:03:26]} 59. Nc2 {[%emt 0:01:17]} Qxb5 {[%emt 0:00:31]} 60. Nxa3 {[%emt 0:00:21]} Ne5+ {[%emt 0:00:04]} 0-1

[Event "FIDE WYCC Open U14 2023"]
[Site "Montesilvano"]
[Date "2023.11.21"]
[Round "8.21"]
[White "Artemov, Andriy"]
[Black "Sodbilegt, Naranbold"]
[Result "1-0"]
[ECO "E54"]
[WhiteElo "1779"]
[BlackElo "2151"]
[Annotator "RC"]
[PlyCount "45"]
[EventDate "2023.11.13"]
[EventType "swiss"]
[EventCountry "ITA"]
[SourceTitle "playchess.com"]
[Source "ChessBase"]
[SourceQuality "1"]
[TimeControl "40/5400+30:1800+30"]

1. d4 {[%emt 0:02:08]} Nf6 {[%emt 0:00:05]} 2. c4 {[%emt 0:00:05]} e6 {[%emt 0:00:03]} 3. Nc3 {[%emt 0:00:41]} Bb4 {[%emt 0:00:12]} 4. e3 {[%emt 0:00:32]} O-O {[%emt 0:00:32]} 5. Bd3 {[%emt 0:00:21]} d5 {[%emt 0:01:03]} 6. Nf3 {[%emt 0:00:46]} dxc4 {[%emt 0:00:37]} 7. Bxc4 {[%emt 0:00:07]} c5 {[%emt 0:00:05]} 8. O-O {[%emt 0:00:22]} cxd4 {[%emt 0:02:19]} 9. exd4 {[%emt 0:00:05]} Nc6 {[%emt 0:02:53]} 10. Bg5 {[%emt 0:02:00]} Be7 {[%emt 0:01:14]} 11. Re1 {[%emt 0:01:11]} a6 {[%emt 0:02:40]} 12. Rc1 {[%emt 0:03:04]} h6 {[%emt 0:17:03]} 13. Bh4 {[%emt 0:03:41]} Qb6 {[%emt 0:06:19]} 14. Rc2 {[%emt 0:07:08]} Na5 {[%emt 0:12:37]} 15. Bd3 {[%emt 0:00:31]} Bd7 {[%emt 0:04:33]} 16. Ne5 {[%emt 0:04:36]} Rfd8 {[%emt 0:02:25]} 17. Ne4 {[%emt 0:03:44]} g5 {[%emt 0:23:49]} 18. Nxf6+ {[%emt 0:02:49]} Bxf6 {[%emt 0:00:13]} 19. Qh5 {[%emt 0:00:38]} Bxe5 {[%emt 0:02:51]} 20. Rxe5 {[%emt 0:01:35]} Qxd4 {[%emt 0:16:08]} 21. Qxh6 {[%emt 0:00:19]} f5 {[%emt 0:01:01]} 22. Qxg5+ {[%emt 0:01:45]} Kh7 {[%emt 0:00:30]} 23. Bxf5+ {[%emt 0:00:33]} 1-0

[Event "FIDE WYCC Open U14 2023"]
[Site "Montesilvano"]
[Date "2023.11.21"]
[Round "8.22"]
[White "Myagmarsuren, Evsuld"]
[Black "Yang, Sylvia Siyuan"]
[Result "1-0"]
[ECO "C42"]
[WhiteElo "2150"]
[BlackElo "1973"]
[Annotator "RC"]
[PlyCount "75"]
[EventDate "2023.11.13"]
[EventType "swiss"]
[EventCountry "ITA"]
[SourceTitle "playchess.com"]
[Source "ChessBase"]
[SourceQuality "1"]
[TimeControl "40/5400+30:1800+30"]

1. e4 {[%emt 0:00:01]} e5 {[%emt 0:00:12]} 2. Nf3 {[%emt 0:00:02]} Nf6 {[%emt 0:00:09]} 3. Nxe5 {[%emt 0:00:27]} d6 {[%emt 0:00:01]} 4. Nf3 {[%emt 0:00:07]} Nxe4 {[%emt 0:00:05]} 5. d4 {[%emt 0:00:03]} d5 {[%emt 0:00:06]} 6. Bd3 {[%emt 0:00:10]} Nc6 {[%emt 0:00:05]} 7. O-O {[%emt 0:00:44]} Be7 {[%emt 0:00:01]} 8. Nbd2 {[%emt 0:00:26]} Nxd2 {[%emt 0:00:51]} 9. Bxd2 {[%emt 0:00:07]} O-O {[%emt 0:01:17]} 10. c3 {[%emt 0:00:06]} Bg4 {[%emt 0:01:58]} 11. h3 {[%emt 0:00:08]} Bh5 {[%emt 0:00:03]} 12. g3 {[%emt 0:00:39]} Bg6 {[%emt 0:03:02]} 13. Bxg6 {[%emt 0:01:34]} fxg6 {[%emt 0:00:02]} 14. Kg2 {[%emt 0:01:16]} Kh8 {[%emt 0:01:22]} 15. Re1 {[%emt 0:08:01]} Qd7 {[%emt 0:02:20]} 16. Re3 {[%emt 0:05:30]} Rae8 {[%emt 0:03:58]} 17. Qe2 {[%emt 0:00:33]} Bf6 {[%emt 0:01:37]} 18. Re1 {[%emt 0:03:46]} Rxe3 {[%emt 0:00:09]} 19. Qxe3 {[%emt 0:00:12]} Kg8 {[%emt 0:03:37]} 20. Qe2 {[%emt 0:05:50]} Rf7 {[%emt 0:08:01]} 21. Qb5 {[%emt 0:01:32]} Ne5 {[%emt 0:04:06]} 22. Qxd7 {[%emt 0:01:33]} Nxd7 {[%emt 0:00:02]} 23. Bf4 {[%emt 0:00:32]} Bd8 {[%emt 0:00:02]} 24. h4 {[%emt 0:02:19]} Nf6 {[%emt 0:01:23]} 25. Ng5 {[%emt 0:02:59]} Rd7 {[%emt 0:03:08]} 26. Ne6 {[%emt 0:12:10]} c6 {[%emt 0:00:30]} 27. Nc5 {[%emt 0:00:58]} Rf7 {[%emt 0:00:09]} 28. Bg5 {[%emt 0:00:47]} Rc7 {[%emt 0:15:43]} 29. Bf4 {[%emt 0:26:26]} Rf7 {[%emt 0:00:06]} 30. Be5 {[%emt 0:00:42]} b6 {[%emt 0:09:25]} 31. Ne6 {[%emt 0:01:38]} Be7 {[%emt 0:02:58]} 32. Ng5 {[%emt 0:02:06]} Rf8 {[%emt 0:00:09]} 33. f3 {[%emt 0:15:02]} h6 {[%emt 0:02:56]} 34. Nh3 {[%emt 0:00:14]} Kf7 {[%emt 0:00:49]} 35. Nf4 {[%emt 0:01:41]} Nd7 {[%emt 0:02:36]} 36. Bxg7 {[%emt 0:01:06]} Kxg7 {[%emt 0:00:29]} 37. Rxe7+ {[%emt 0:00:08]} Rf7 {[%emt 0:00:01]} 38. Ne6+ {[%emt 0:00:29]} 1-0

[Event "FIDE WYCC Open U14 2023"]
[Site "Montesilvano"]
[Date "2023.11.21"]
[Round "8.23"]
[White "Besou, Hussain"]
[Black "Schuricht, Emil Frederick"]
[Result "1/2-1/2"]
[ECO "D25"]
[WhiteElo "2341"]
[BlackElo "1998"]
[Annotator "RC"]
[PlyCount "71"]
[EventDate "2023.11.13"]
[EventType "swiss"]
[EventCountry "ITA"]
[SourceTitle "playchess.com"]
[Source "ChessBase"]
[SourceQuality "1"]
[TimeControl "40/5400+30:1800+30"]

1. d4 {[%emt 0:00:06]} d5 {[%emt 0:00:07]} 2. c4 {[%emt 0:00:07]} dxc4 {[%emt 0:00:04]} 3. Nf3 {[%emt 0:00:31]} Nf6 {[%emt 0:00:06]} 4. e3 {[%emt 0:00:17]} Bg4 {[%emt 0:00:14]} 5. Bxc4 {[%emt 0:00:12]} e6 {[%emt 0:00:04]} 6. O-O {[%emt 0:00:14]} Nbd7 {[%emt 0:00:18]} 7. Nc3 {[%emt 0:00:40]} Be7 {[%emt 0:00:13]} 8. Be2 {[%emt 0:10:15]} O-O {[%emt 0:02:01]} 9. b3 {[%emt 0:00:31]} Nd5 {[%emt 0:08:21]} 10. Bb2 {[%emt 0:02:41]} Ba3 {[%emt 0:02:22]} 11. Qd2 {[%emt 0:05:08]} Bxb2 {[%emt 0:00:10]} 12. Qxb2 {[%emt 0:00:05]} Nxc3 {[%emt 0:02:03]} 13. Qxc3 {[%emt 0:00:04]} Rc8 {[%emt 0:07:00]} 14. b4 {[%emt 0:03:04]} Qe7 {[%emt 0:01:19]} 15. Rfe1 {[%emt 0:03:10]} Rfe8 {[%emt 0:04:12]} 16. Rac1 {[%emt 0:01:48]} c6 {[%emt 0:07:17]} 17. h3 {[%emt 0:07:13]} Bh5 {[%emt 0:12:09]} 18. Ne5 {[%emt 0:02:54]} Bxe2 {[%emt 0:03:05]} 19. Nxd7 {[%emt 0:00:18]} Qxd7 {[%emt 0:00:12]} 20. Rxe2 {[%emt 0:00:06]} Qd6 {[%emt 0:11:05]} 21. Qc5 {[%emt 0:10:12]} Qxc5 {[%emt 0:00:56]} 22. Rxc5 {[%emt 0:00:07]} Kf8 {[%emt 0:01:04]} 23. Rec2 {[%emt 0:00:24]} Ke7 {[%emt 0:00:51]} 24. f4 {[%emt 0:00:49]} Red8 {[%emt 0:04:17]} 25. Kf2 {[%emt 0:02:29]} Rd5 {[%emt 0:02:07]} 26. R5c4 {[%emt 0:04:30]} f5 {[%emt 0:08:16]} 27. Kf3 {[%emt 0:01:35]} Ra8 {[%emt 0:02:58]} 28. a4 {[%emt 0:05:15]} a6 {[%emt 0:01:23]} 29. Rc5 {[%emt 0:03:16]} Rxc5 {[%emt 0:06:22]} 30. bxc5 {[%emt 0:02:01]} Rd8 {[%emt 0:00:07]} 31. Rb2 {[%emt 0:00:23]} Rd7 {[%emt 0:00:04]} 32. g4 g6 {[%emt 0:00:11]} 33. h4 {[%emt 0:07:49]} a5 {[%emt 0:03:57]} 34. Rh2 {[%emt 0:01:09]} Kf6 {[%emt 0:01:26]} 35. h5 {[%emt 0:02:53]} Kg7 {[%emt 0:03:17]} 36. hxg6 {[%emt 0:05:06]} 1/2-1/2

[Event "FIDE WYCC Open U14 2023"]
[Site "Montesilvano"]
[Date "2023.11.21"]
[Round "8.24"]
[White "George Micheal, Kevin"]
[Black "Juhanak, Daniel"]
[Result "1-0"]
[ECO "C07"]
[WhiteElo "2317"]
[BlackElo "1984"]
[Annotator "RC"]
[PlyCount "87"]
[EventDate "2023.11.13"]
[EventType "swiss"]
[EventCountry "ITA"]
[SourceTitle "playchess.com"]
[Source "ChessBase"]
[SourceQuality "1"]
[TimeControl "40/5400+30:1800+30"]

1. e4 {[%emt 0:00:39]} e6 {[%emt 0:00:16]} 2. d4 {[%emt 0:00:17]} d5 {[%emt 0:00:15]} 3. Nd2 {[%emt 0:00:04]} c5 {[%emt 0:00:23]} 4. Ngf3 {[%emt 0:00:05]} cxd4 {[%emt 0:00:18]} 5. Nxd4 {[%emt 0:00:11]} Nc6 {[%emt 0:00:35]} 6. Bb5 {[%emt 0:00:19]} Bd7 {[%emt 0:00:37]} 7. Nxc6 {[%emt 0:00:07]} bxc6 {[%emt 0:00:18]} 8. Bd3 {[%emt 0:00:08]} Bd6 {[%emt 0:03:31]} 9. Qe2 {[%emt 0:03:59]} Qc7 {[%emt 0:05:00]} 10. Nf3 {[%emt 0:00:11]} dxe4 {[%emt 0:00:27]} 11. Qxe4 {[%emt 0:04:17]} Nf6 {[%emt 0:01:45]} 12. Qh4 {[%emt 0:00:35]} Qa5+ {[%emt 0:06:11]} 13. Bd2 {[%emt 0:08:00]} Qh5 {[%emt 0:02:44]} 14. Qxh5 {[%emt 0:09:52]} Nxh5 {[%emt 0:00:50]} 15. Bc3 {[%emt 0:04:58]} f6 {[%emt 0:17:45]} 16. O-O-O {[%emt 0:04:47]} Ke7 {[%emt 0:08:50]} 17. Rhe1 {[%emt 0:08:28]} Nf4 {[%emt 0:09:07]} 18. Be4 {[%emt 0:03:55]} e5 {[%emt 0:04:57]} 19. g3 {[%emt 0:08:39]} Ng6 {[%emt 0:11:25]} 20. Nd2 {[%emt 0:11:03]} Rac8 {[%emt 0:09:26]} 21. Nc4 {[%emt 0:03:14]} Bb8 {[%emt 0:05:05]} 22. f4 {[%emt 0:09:05]} Bg4 {[%emt 0:09:55]} 23. Rd2 {[%emt 0:00:30]} Be6 {[%emt 0:01:41]} 24. Na5 {[%emt 0:09:11]} f5 {[%emt 0:00:33]} 25. Bxc6 {[%emt 0:00:52]} Bc7 {[%emt 0:00:32]} 26. Bb4+ {[%emt 0:01:38]} Kf7 {[%emt 0:00:29]} 27. Bd7 {[%emt 0:00:20]} Rb8 {[%emt 0:00:33]} 28. Nc6 {[%emt 0:02:00]} Rb6 {[%emt 0:00:29]} 29. Bc5 {[%emt 0:01:03]} Ra6 {[%emt 0:00:25]} 30. fxe5 {[%emt 0:00:42]} Rxa2 {[%emt 0:00:30]} 31. Kb1 {[%emt 0:00:57]} Ra4 {[%emt 0:00:34]} 32. Bxe6+ {[%emt 0:02:38]} Kxe6 {[%emt 0:00:01]} 33. Nd4+ {[%emt 0:00:46]} Kd5 {[%emt 0:00:41]} 34. Nb3+ {[%emt 0:00:55]} Kc6 {[%emt 0:00:28]} 35. e6 {[%emt 0:01:10]} Ne5 {[%emt 0:00:49]} 36. Rf2 {[%emt 0:01:06]} g6 {[%emt 0:00:31]} 37. Bd4 {[%emt 0:00:14]} Kd5 {[%emt 0:00:23]} 38. Bxe5 {[%emt 0:00:31]} Bxe5 {[%emt 0:00:06]} 39. Rd2+ {[%emt 0:00:05]} Bd4 {[%emt 0:00:30]} 40. c3 {[%emt 0:00:00]} Kc4 {[%emt 0:00:00]} 41. Nxd4 {[%emt 0:01:10]} Ra6 {[%emt 0:03:22]} 42. Re5 {[%emt 0:00:36]} Re8 {[%emt 0:00:23]} 43. Nb5 {[%emt 0:01:00]} Rexe6 {[%emt 0:01:42]} 44. Rd4+ {[%emt 0:00:13]} 1-0

[Event "FIDE WYCC Open U14 2023"]
[Site "Montesilvano"]
[Date "2023.11.21"]
[Round "8.25"]
[White "Kuziev, Miraziz"]
[Black "Tenuunbold, Battulga"]
[Result "1-0"]
[ECO "D45"]
[WhiteElo "2053"]
[BlackElo "2290"]
[Annotator "RC"]
[PlyCount "87"]
[EventDate "2023.11.13"]
[EventType "swiss"]
[EventCountry "ITA"]
[SourceTitle "playchess.com"]
[Source "ChessBase"]
[SourceQuality "1"]
[TimeControl "40/5400+30:1800+30"]

1. d4 {[%emt 0:01:58]} d5 {[%emt 0:00:15]} 2. c4 {[%emt 0:00:43]} e6 {[%emt 0:00:08]} 3. Nc3 {[%emt 0:00:06]} c6 {[%emt 0:00:13]} 4. e3 {[%emt 0:00:10]} Nf6 {[%emt 0:00:40]} 5. Nf3 {[%emt 0:00:08]} Nbd7 {[%emt 0:00:53]} 6. Qc2 {[%emt 0:00:07]} Bd6 {[%emt 0:00:56]} 7. Bd3 {[%emt 0:01:46]} dxc4 {[%emt 0:00:34]} 8. Bxc4 {[%emt 0:00:07]} b5 {[%emt 0:00:08]} 9. Be2 {[%emt 0:00:05]} O-O {[%emt 0:00:29]} 10. O-O {[%emt 0:00:06]} a6 {[%emt 0:00:31]} 11. Ng5 {[%emt 0:00:04]} Bb7 {[%emt 0:03:29]} 12. Nge4 {[%emt 0:01:56]} Be7 {[%emt 0:01:09]} 13. a3 {[%emt 0:00:32]} a5 {[%emt 0:17:48]} 14. Rd1 {[%emt 0:00:28]} Qb6 {[%emt 0:06:17]} 15. Nxf6+ {[%emt 0:02:59]} Bxf6 {[%emt 0:03:20]} 16. Rb1 {[%emt 0:00:59]} b4 {[%emt 0:15:15]} 17. Na4 {[%emt 0:00:46]} Qc7 {[%emt 0:00:19]} 18. axb4 {[%emt 0:04:50]} axb4 {[%emt 0:00:02]} 19. e4 {[%emt 0:04:57]} Rfc8 {[%emt 0:07:29]} 20. Be3 {[%emt 0:00:32]} e5 {[%emt 0:05:27]} 21. dxe5 {[%emt 0:00:41]} Bxe5 {[%emt 0:00:13]} 22. f4 {[%emt 0:00:07]} Bf6 {[%emt 0:00:29]} 23. e5 {[%emt 0:01:49]} Be7 {[%emt 0:00:03]} 24. Bg4 {[%emt 0:02:18]} Rd8 {[%emt 0:00:44]} 25. Bxd7 {[%emt 0:01:43]} Rxd7 {[%emt 0:00:02]} 26. Rxd7 {[%emt 0:00:09]} Qxd7 {[%emt 0:00:01]} 27. Nb6 {[%emt 0:00:07]} b3 {[%emt 0:00:11]} 28. Qc1 {[%emt 0:01:40]} Qg4 {[%emt 0:02:43]} 29. Nxa8 {[%emt 0:00:09]} c5 {[%emt 0:00:01]} 30. Qd2 {[%emt 0:02:35]} Bxa8 {[%emt 0:00:01]} 31. Ra1 {[%emt 0:00:08]} Be4 {[%emt 0:00:23]} 32. Ra7 {[%emt 0:02:27]} Bf8 {[%emt 0:00:24]} 33. Rc7 {[%emt 0:01:41]} h6 {[%emt 0:05:17]} 34. h3 {[%emt 0:03:10]} Qf5 {[%emt 0:00:17]} 35. Qd8 {[%emt 0:02:51]} Qg6 {[%emt 0:00:41]} 36. g4 {[%emt 0:00:03]} Qa6 {[%emt 0:03:46]} 37. Rc8 {[%emt 0:00:17]} Qa1+ {[%emt 0:05:27]} 38. Kf2 {[%emt 0:00:10]} Qxb2+ {[%emt 0:00:30]} 39. Kg3 {[%emt 0:00:26]} Qg2+ {[%emt 0:01:53]} 40. Kh4 {[%emt 0:00:00]} Kh7 {[%emt 0:00:00]} 41. Qxf8 {[%emt 0:00:11]} Qe2 {[%emt 0:04:58]} 42. Qg8+ {[%emt 0:00:09]} Kg6 {[%emt 0:00:01]} 43. Rc6+ Bxc6 {[%emt 0:00:11]} 44. f5# {[%emt 0:00:09]} 1-0